bitfinex-derivatives/quotes_BTCF0:USTF0_20260207
["timestamp","ask_amount","ask_price","bid_price","bid_amount"]
[1770450382581,0.55273384,68291.0,68241.0,0.001]
[1770450382793,0.55273384,68288.0,68241.0,0.001]
[1770450382987,0.55273384,68286.0,68241.0,0.001]
[1770450383187,0.55273384,68284.0,68241.0,0.001]
[1770450383492,0.55273384,68284.0,68242.0,0.014663]
[1770450383683,0.55273384,68284.0,68236.0,0.54775884]
[1770450383886,0.55273384,68284.0,68238.0,0.014664]
[1770450384187,0.55273384,68284.0,68240.0,0.014663]
[1770450384588,0.55273384,68284.0,68240.0,0.014613]
[1770450384981,0.00011987,68283.0,68247.0,0.56242084]
[1770450385180,0.00011987,68282.0,68247.0,0.83296402]
[1770450385375,0.00011987,68281.0,68247.0,0.83296402]
[1770450385584,0.001,68284.0,68247.0,0.83296402]
[1770450385786,0.001,68284.0,68248.0,0.83296402]
[1770450386090,0.55273384,68283.0,68239.0,0.54775884]
[1770450386881,0.55273384,68283.0,68243.0,0.014663]
[1770450387187,0.55273384,68283.0,68241.0,0.213406]
[1770450387382,0.55273384,68283.0,68244.0,0.76116484]
[1770450387581,0.56738584,68297.0,68247.0,0.228068]
[1770450387782,0.55273384,68296.0,68247.0,0.014662]
[1770450387976,0.55273384,68296.0,68247.0,0.56242084]
[1770450388179,0.001,68283.0,68247.0,0.56242084]
[1770450388684,0.001,68283.0,68256.0,0.01466]
[1770450388882,0.001,68283.0,68257.0,0.2200952]
[1770450389188,0.55373384,68296.0,68258.0,0.2200952]
[1770450389488,0.55273384,68294.0,68251.0,0.54775884]
[1770450389685,0.55273384,68294.0,68231.0,0.42881094]
[1770450389686,0.00011987,68293.0,68259.0,0.01466]
[1770450389889,0.001,68296.0,68260.0,0.22009176]
[1770450390192,0.001,68296.0,68264.0,0.014658]
[1770450390380,0.001,68296.0,68265.0,0.22009176]
[1770450390580,0.55273384,68308.0,68272.0,0.014657]
[1770450390778,0.55273384,68326.0,68274.0,0.54775884]
[1770450390984,0.55273384,68324.0,68276.0,0.014656]
[1770450391190,0.55273384,68321.0,68277.0,0.22009176]
[1770450391383,0.55273384,68319.0,68278.0,0.22009176]
[1770450391579,0.1651731,68350.0,68270.0,0.28470076]
[1770450391580,0.55273384,68305.0,68270.0,0.28470076]
[1770450391886,0.55273384,68297.0,68250.0,0.014661]
[1770450392093,0.55273384,68297.0,68260.0,0.014659]
[1770450392391,0.55273384,68297.0,68262.0,0.014659]
[1770450392887,0.55273384,68297.0,68267.0,0.014658]
[1770450393082,0.55273384,68297.0,68261.0,0.014659]
[1770450393278,0.55273384,68318.0,68255.0,0.28470076]
[1770450393488,0.55273384,68317.0,68281.0,0.014655]
[1770450393792,0.55373384,68305.0,68268.0,0.014658]
[1770450393991,0.55373384,68305.0,68262.0,0.014659]
[1770450394385,0.55273384,68305.0,68262.0,0.014659]
[1770450394587,0.55273384,68305.0,68267.0,0.014658]
[1770450394789,0.55273384,68305.0,68275.0,0.014656]
[1770450394989,0.55273384,68305.0,68269.0,0.014657]
[1770450395285,0.55373384,68305.0,68273.0,0.014656]
[1770450395484,0.55373384,68305.0,68270.0,0.28470076]
[1770450395687,0.001,68305.0,68273.0,0.28470076]
[1770450395886,0.001,68305.0,68274.0,0.28470076]
[1770450396088,0.001,68305.0,68288.0,0.014653]
[1770450396279,0.00011987,68304.0,68282.0,0.29935476]
[1770450396484,0.001,68305.0,68287.0,0.014653]
[1770450396684,0.55273384,68318.0,68287.0,0.014653]
[1770450396890,0.55603261,68339.0,68285.0,0.53470746]
[1770450397086,0.55603261,68339.0,68309.0,0.014649]
[1770450397286,0.55603261,68339.0,68303.0,0.28791319]
[1770450397287,0.55603261,68339.0,68313.0,0.014648]
[1770450397481,0.55603261,68339.0,68288.0,0.53470746]
[1770450397482,0.55603261,68339.0,68308.0,0.28791319]
[1770450397688,0.12714853,68317.0,68299.0,0.28896488]
[1770450397886,0.073191,68361.0,68273.0,0.12184335]
[1770450397887,0.12714853,68307.0,68273.0,0.12184335]
[1770450398094,0.12714853,68307.0,68253.0,0.0002]
[1770450398095,0.1505331,68290.0,68266.0,0.014658]
[1770450398291,0.014643,68335.0,68253.0,0.0002]
[1770450398292,0.1505331,68320.0,68294.0,0.014652]
[1770450398591,0.1505331,68320.0,68290.0,0.014653]
[1770450398796,0.13078005,68323.0,68283.0,0.014654]
[1770450398797,0.1505331,68300.0,68283.0,0.014654]
[1770450398988,0.1505331,68300.0,68278.0,0.13649835]
[1770450399295,0.1505331,68300.0,68280.0,0.014655]
[1770450399492,0.1505331,68310.0,68299.0,0.12184335]
[1770450399791,0.001,68307.0,68279.0,0.014655]
[1770450399996,0.001,68307.0,68281.0,0.014655]
[1770450400390,0.001,68307.0,68282.0,0.12184335]
[1770450400591,0.1515331,68310.0,68282.0,0.12184335]
[1770450400896,0.1515331,68310.0,68281.0,0.014655]
[1770450400897,0.1515331,68310.0,68283.0,0.12184335]
[1770450401088,0.1515331,68310.0,68284.0,0.014654]
[1770450401288,0.1515331,68310.0,68288.0,0.014653]
[1770450401492,0.1505332,68310.0,68280.0,0.53470746]
[1770450401697,0.1505332,68310.0,68281.0,0.65655081]
[1770450401998,0.1505332,68310.0,68295.0,0.014652]
[1770450402197,2e-07,68310.0,68299.0,0.014651]
[1770450402398,0.1505331,68310.0,68282.0,0.12184335]
[1770450402599,9e-07,68307.0,68304.0,0.01465]
[1770450402893,0.1505331,68320.0,68293.0,0.014652]
[1770450402894,0.33363,68320.0,68293.0,0.014652]
[1770450403098,0.33363,68320.0,68290.0,0.17445056]
[1770450403298,0.1505331,68320.0,68291.0,0.15045056]
[1770450403486,0.1505331,68320.0,68287.0,0.56291548]
[1770450403685,0.1505331,68320.0,68288.0,0.21997334]
[1770450403896,0.1505331,68320.0,68289.0,0.21997334]
[1770450404095,0.1505331,68320.0,68290.0,0.21997334]
[1770450404298,0.1505331,68320.0,68291.0,0.21997334]
[1770450404501,0.1505331,68320.0,68301.0,0.01465]
[1770450405893,0.06125355,68334.0,68280.0,0.014655]
[1770450405894,0.06125355,68334.0,68291.0,0.62473171]
[1770450406092,0.1505331,68330.0,68313.0,0.014648]
[1770450406694,0.1505331,68330.0,68298.0,0.62520124]
[1770450406900,0.09416726,68347.0,68320.0,0.014646]
[1770450407099,0.014641,68344.0,68315.0,0.014647]
[1770450408001,0.09416726,68347.0,68319.0,0.014647]
[1770450408203,0.1505331,68340.0,68319.0,0.014647]
[1770450408402,0.1505331,68340.0,68247.0,0.65326504]
[1770450408403,1.29548786,68329.0,68247.0,0.65326504]
[1770450408604,0.1505331,68300.0,68263.0,0.58353333]
[1770450408901,0.00127482,68299.0,68249.0,0.58290839]
[1770450409105,0.014655,68279.0,68249.0,0.58290839]
[1770450409299,0.00127482,68287.0,68233.0,0.58290839]
[1770450409499,0.014662,68249.0,68233.0,0.58290839]
[1770450409707,0.014661,68254.0,68233.0,0.58290839]
[1770450409907,0.014661,68251.0,68233.0,0.58290839]
[1770450410104,0.014661,68251.0,68232.0,0.0002]
[1770450410105,0.014663,68241.0,68232.0,0.0002]
[1770450410299,0.1505331,68260.0,68232.0,0.0002]
[1770450410499,0.00127482,68274.0,68220.0,0.58290839]
[1770450410801,0.01466,68260.0,68220.0,0.58290839]
[1770450411000,0.01466,68260.0,68220.0,0.56590839]
[1770450411397,0.073292,68266.0,68220.0,0.56590839]
[1770450411707,0.1505331,68260.0,68220.0,0.56590839]
[1770450411901,0.001,68251.0,68220.0,0.56590839]
[1770450412405,0.014665,68235.0,68220.0,0.56590839]
[1770450412801,0.073309,68251.0,68220.0,0.56590839]
[1770450412997,0.014662,68248.0,68220.0,3.9e-07]
[1770450413207,0.073308,68252.0,68201.0,0.53470746]
[1770450413403,0.014666,68230.0,68201.0,0.53470746]
[1770450413803,0.014662,68249.0,68201.0,0.53470746]
[1770450414004,0.073303,68256.0,68209.0,0.53470746]
[1770450414207,0.014661,68254.0,68209.0,0.53470746]
[1770450414509,0.014666,68228.0,68209.0,0.53470746]
[1770450414708,0.073312,68248.0,68209.0,0.53470746]
[1770450414911,0.014665,68234.0,68209.0,0.53470746]
[1770450415107,0.2426,68254.0,68209.0,0.53470746]
[1770450415307,0.014665,68234.0,68209.0,0.53470746]
[1770450415608,0.014672,68203.0,68184.0,0.53470746]
[1770450415909,0.01467,68211.0,68184.0,4.6e-07]
[1770450416109,0.014673,68195.0,68173.0,0.0002]
[1770450416306,0.55603261,68179.0,68120.0,0.53470746]
[1770450416513,0.55603261,68179.0,68125.0,0.53470746]
[1770450416702,0.55603261,68179.0,68127.0,0.53470746]
[1770450416703,0.014679,68169.0,68127.0,0.53470746]
[1770450416912,0.1505331,68190.0,68136.0,0.53470746]
[1770450417110,0.014678,68173.0,68157.0,0.0002]
[1770450417303,0.2426,68184.0,68142.0,0.0002]
[1770450417507,0.073385,68180.0,68142.0,0.0002]
[1770450417708,0.79863261,68184.0,68142.0,0.53490746]
[1770450417907,0.073356,68207.0,68154.0,0.53470746]
[1770450418205,0.073356,68207.0,68142.0,0.0002]
[1770450418206,0.073359,68204.0,68172.0,0.0002]
[1770450418413,0.07336,68203.0,68172.0,0.0002]
[1770450418722,0.014674,68194.0,68172.0,0.0002]
[1770450418906,0.014675,68189.0,68172.0,0.0002]
[1770450419207,0.014673,68196.0,68169.0,0.49390746]
[1770450419401,0.073341,68221.0,68169.0,0.49390746]
[1770450419606,0.014671,68206.0,68171.0,0.53470746]
[1770450419807,0.55603261,68226.0,68173.0,0.53470746]
[1770450420014,0.014671,68206.0,68173.0,0.53470746]
[1770450420209,0.014669,68216.0,68173.0,0.53470746]
[1770450420415,0.073337,68225.0,68173.0,0.53470746]
[1770450420612,0.55603261,68235.0,68173.0,0.53470746]
[1770450420809,0.55603261,68217.0,68172.0,0.53490746]
[1770450421010,0.014668,68220.0,68172.0,0.54958546]
[1770450421514,0.01467,68210.0,68172.0,0.53490746]
[1770450421701,0.62936761,68226.0,68174.0,0.53470746]
[1770450421702,0.014669,68216.0,68174.0,0.53470746]
[1770450421907,0.01467,68210.0,68179.0,0.0002]
[1770450422409,0.014671,68206.0,68179.0,0.0002]
[1770450422716,0.55603261,68221.0,68174.0,0.53470746]
[1770450423208,0.01467,68213.0,68174.0,0.53470746]
[1770450423615,0.01467,68213.0,68174.0,0.54938546]
[1770450423915,0.01467,68213.0,68155.0,0.073411]
[1770450423916,0.014668,68219.0,68179.0,0.53470746]
[1770450424109,0.014668,68219.0,68194.0,0.0002]
[1770450424419,0.55603261,68235.0,68194.0,0.0002]
[1770450424420,0.014667,68224.0,68194.0,0.0002]
[1770450424616,0.014668,68219.0,68194.0,0.0002]
[1770450424817,0.55603261,68229.0,68194.0,0.0002]
[1770450425216,0.55603261,68229.0,68170.0,0.1505331]
[1770450425217,0.014667,68223.0,68189.0,0.53470746]
[1770450425612,0.073319,68241.0,68189.0,0.53470746]
[1770450425814,0.014665,68233.0,68197.0,0.014673]
[1770450426010,0.014665,68233.0,68166.0,0.014879]
[1770450426011,0.014658,68267.0,68224.0,0.5573362]
[1770450426210,0.014658,68267.0,68228.0,0.5720022]
[1770450426410,0.0002,68273.0,68237.0,0.014664]
[1770450426610,0.0002,68273.0,68237.0,0.5720002]
[1770450426808,0.0002,68273.0,68221.0,0.5573362]
[1770450426809,0.073295,68263.0,68221.0,0.5573362]
[1770450427108,0.0002,68273.0,68227.0,0.5573362]
[1770450427309,0.60408933,68277.0,68227.0,0.5573362]
[1770450427513,0.53080833,68277.0,68228.0,0.5573362]
[1770450428212,0.53080833,68272.0,68228.0,0.5573362]
[1770450428418,0.53080833,68272.0,68246.0,0.0002]
[1770450428613,0.01466,68258.0,68228.0,0.5573362]
[1770450428814,0.014663,68243.0,68214.0,0.5573362]
[1770450429013,0.52944356,68259.0,68214.0,0.5573362]
[1770450429218,0.014665,68234.0,68214.0,0.5573362]
[1770450429413,0.52944356,68257.0,68214.0,0.5573362]
[1770450429613,0.52944356,68253.0,68214.0,0.5573362]
[1770450429808,0.001,68277.0,68192.0,0.0002]
[1770450429809,0.52944356,68267.0,68216.0,0.54798856]
[1770450430008,0.014662,68247.0,68219.0,0.54798856]
[1770450430411,0.014663,68243.0,68219.0,0.54798856]
[1770450430615,0.014663,68244.0,68219.0,0.54798856]
[1770450430815,0.014664,68240.0,68219.0,0.54798856]
[1770450431021,0.014664,68240.0,68219.0,0.50998856]
[1770450431221,0.014664,68240.0,68198.0,0.0002]
[1770450431222,0.014674,68193.0,68169.0,0.54498856]
[1770450431524,0.073359,68204.0,68169.0,0.54498856]
[1770450431713,0.073359,68204.0,68140.0,0.15073088]
[1770450431714,0.073366,68198.0,68141.0,0.54798856]
[1770450431923,0.073366,68198.0,68140.0,0.15073088]
[1770450431924,0.073359,68204.0,68143.0,0.54798856]
[1770450432114,0.014677,68179.0,68143.0,0.54798856]
[1770450432426,0.014678,68175.0,68143.0,0.54798856]
[1770450432622,0.01468,68164.0,68143.0,0.54798856]
[1770450432817,0.52944356,68184.0,68100.0,0.15083652]
[1770450433125,0.15073088,68210.0,68115.0,0.54798856]
[1770450433126,0.073396,68170.0,68115.0,0.54798856]
[1770450433318,0.014684,68146.0,68115.0,0.54798856]
[1770450433510,0.014688,68129.0,68115.0,0.54798856]
[1770450433715,0.014686,68135.0,68115.0,0.54798856]
[1770450433911,0.073417,68150.0,68101.0,0.54798856]
[1770450434213,0.073418,68150.0,68117.0,0.54798856]
[1770450434621,0.014687,68134.0,68117.0,0.54798856]
[1770450434819,0.52944356,68160.0,68117.0,0.54798856]
[1770450435024,0.52944356,68160.0,68120.0,0.0002]
[1770450435025,0.014684,68144.0,68120.0,0.0002]
[1770450435213,0.014684,68144.0,68117.0,0.54798856]
[1770450435214,0.073414,68153.0,68117.0,0.54798856]
[1770450435615,0.52944356,68160.0,68117.0,0.54798856]
[1770450435822,0.073361,68202.0,68107.0,0.0002]
[1770450435823,0.073397,68169.0,68119.0,0.56267856]
[1770450436015,0.014682,68155.0,68124.0,0.014689]
[1770450436215,0.014682,68155.0,68110.0,0.15073088]
[1770450436216,0.014682,68155.0,68126.0,0.54798856]
[1770450436518,0.014682,68155.0,68131.0,0.0002]
[1770450437020,0.073393,68172.0,68131.0,0.0002]
[1770450437218,0.014685,68142.0,68117.0,0.001]
[1770450437415,0.014686,68135.0,68111.0,0.54798856]
[1770450437914,0.014685,68142.0,68113.0,0.54798856]
[1770450438120,0.014684,68147.0,68134.0,0.0014]
[1770450438415,0.014684,68147.0,68114.0,0.014691]
[1770450438416,0.014685,68142.0,68116.0,0.0002]
[1770450438615,0.014685,68140.0,68116.0,0.0002]
[1770450438814,0.014684,68145.0,68113.0,0.52587956]
[1770450439022,0.014685,68141.0,68113.0,0.52587956]
[1770450439320,0.014686,68137.0,68106.0,0.014692]
[1770450439525,0.014679,68169.0,68106.0,0.54798856]
[1770450439722,0.014681,68160.0,68131.0,0.54798856]
[1770450439911,0.014682,68156.0,68131.0,0.54798856]
[1770450440517,0.014681,68161.0,68131.0,0.54798856]
[1770450440714,0.014683,68153.0,68133.0,0.0002]
[1770450440916,0.52944356,68169.0,68133.0,0.0002]
[1770450441124,0.60282456,68184.0,68133.0,0.54818856]
[1770450441317,0.014681,68162.0,68133.0,0.54818856]
[1770450441517,0.001,68161.0,68133.0,0.54818856]
[1770450441718,0.001,68161.0,68138.0,0.014685]
[1770450441923,0.001,68161.0,68138.0,0.56267356]
[1770450442119,0.00011299,68160.0,68132.0,0.0002]
[1770450442325,0.014681,68158.0,68132.0,0.54818856]
[1770450442618,0.014682,68154.0,68132.0,0.54818856]
[1770450443019,0.52944356,68170.0,68132.0,0.54798856]
[1770450443223,0.014681,68160.0,68132.0,0.54798856]
[1770450443424,0.014681,68160.0,68133.0,0.014687]
[1770450443620,0.014681,68160.0,68132.0,0.54798856]
[1770450443822,0.52944356,68170.0,68132.0,0.54798856]
[1770450444025,0.014682,68157.0,68132.0,0.54798856]
[1770450444325,0.014679,68167.0,68139.0,0.014685]
[1770450444627,0.014679,68167.0,68156.0,0.0034]
[1770450445022,0.014679,68167.0,68139.0,0.014685]
[1770450445217,0.014681,68159.0,68132.0,0.54818856]
[1770450445414,0.01468,68164.0,68132.0,0.54818856]
[1770450445822,0.014679,68169.0,68139.0,0.014685]
[1770450446123,0.52944356,68149.0,68106.0,0.1462]
[1770450446317,0.014684,68145.0,68111.0,0.54798856]
[1770450446516,0.36696,68144.0,68111.0,0.54798856]
[1770450446716,0.014686,68137.0,68111.0,0.53098856]
[1770450447121,0.014687,68133.0,68111.0,0.53098856]
[1770450447323,0.088098,68152.0,68111.0,0.53098856]
[1770450447324,0.367,68135.0,68111.0,0.53098856]
[1770450447517,0.367,68135.0,68100.0,0.00010564]
[1770450447518,0.52944356,68145.0,68100.0,0.54798856]
[1770450447717,0.014689,68124.0,68100.0,0.54798856]
[1770450447918,0.073434,68135.0,68100.0,0.54798856]
[1770450448118,0.014691,68113.0,68100.0,0.54798856]
[1770450448322,0.014687,68132.0,68100.0,0.44698856]
[1770450448523,0.52944356,68141.0,68100.0,0.44698856]
[1770450448524,0.01469,68119.0,68100.0,0.44698856]
[1770450449026,0.01469,68120.0,68100.0,0.44698856]
[1770450449221,0.01469,68118.0,68100.0,0.44698856]
[1770450449417,0.52944356,68141.0,68100.0,0.44698856]
[1770450449418,0.014688,68129.0,68100.0,0.44698856]
[1770450449621,0.36704,68128.0,68100.0,0.44698856]
[1770450449828,0.01469,68117.0,68100.0,0.44698856]
[1770450450028,0.014691,68114.0,68100.0,0.44698856]
[1770450450327,0.014691,68114.0,68026.0,0.01471]
[1770450450328,0.073475,68096.0,68048.0,0.56285027]
[1770450450523,0.014698,68080.0,68054.0,0.54798856]
[1770450450719,0.073481,68091.0,68054.0,0.54798856]
[1770450450919,0.52944356,68096.0,68037.0,0.54798856]
[1770450451129,0.014703,68060.0,68037.0,0.54798856]
[1770450451321,0.014701,68067.0,68037.0,0.54798856]
[1770450451518,0.014701,68067.0,68049.0,0.0002]
[1770450451724,0.52944356,68080.0,68037.0,0.54798856]
[1770450451925,0.36736,68065.0,68039.0,0.014707]
[1770450452125,0.0147,68070.0,68039.0,0.014707]
[1770450452326,0.31261412,68059.0,68026.0,0.0002]
[1770450452524,0.073522,68054.0,68003.0,0.54798856]
[1770450452723,0.2441,68058.0,68000.0,4.37891388]
[1770450452724,0.014705,68050.0,68022.0,0.54818856]
[1770450452929,0.014706,68045.0,68022.0,0.54818856]
[1770450453124,0.52944356,68060.0,68012.0,0.54798856]
[1770450453328,0.014698,68081.0,68000.0,4.37891388]
[1770450453329,0.073534,68042.0,68000.0,4.37591444]
[1770450453525,0.073539,68037.0,68000.0,4.37591444]
[1770450453724,0.073564,68014.0,67982.0,0.0002]
[1770450453928,0.014715,68003.0,67970.0,0.15073088]
[1770450454126,0.014715,68003.0,67961.0,0.54798856]
[1770450454127,0.014713,68009.0,67971.0,0.54798856]
[1770450454325,0.89712356,68030.0,67977.0,0.51198856]
[1770450454529,0.014709,68029.0,67981.0,0.54798856]
[1770450454725,0.382349,68029.0,67983.0,0.54798856]
[1770450454930,0.52944356,68027.0,67985.0,0.54798856]
[1770450455130,0.014711,68020.0,67985.0,0.54798856]
[1770450455332,0.3676,68026.0,67987.0,0.014718]
[1770450455532,0.3676,68026.0,67985.0,0.54798856]
[1770450455832,0.36764,68018.0,67985.0,0.56270756]
[1770450456025,0.36764,68017.0,67985.0,0.56270756]
[1770450456226,0.52944356,68027.0,67970.0,0.15073088]
[1770450456227,0.57337929,68025.0,67970.0,0.57723112]
[1770450456528,0.57337929,68025.0,67977.0,0.57723112]
[1770450456729,0.014712,68015.0,67977.0,0.57723112]
[1770450457133,0.014713,68012.0,67977.0,0.57723112]
[1770450457435,0.36768,68013.0,67988.0,0.014718]
[1770450457639,0.36764,68012.0,67977.0,0.57723112]
[1770450457935,0.014712,68017.0,67983.0,0.014719]
[1770450458232,0.36764,68022.0,67983.0,0.014719]
[1770450458532,0.64689429,68059.0,68007.0,0.014714]
[1770450458743,0.073451,68119.0,68022.0,0.014711]
[1770450458744,0.014703,68056.0,68022.0,0.014711]
[1770450459030,0.57337929,68066.0,68028.0,0.014709]
[1770450459031,0.16160356,68055.0,68028.0,0.014709]
[1770450459233,0.16160356,68065.0,68036.0,0.014707]
[1770450459432,0.16160356,68054.0,68024.0,0.01471]
[1770450459629,0.014705,68049.0,68023.0,0.57723112]
[1770450459836,0.014702,68062.0,68024.0,0.01471]
[1770450460031,0.57337929,68065.0,68023.0,0.57723112]
[1770450460335,0.014703,68057.0,68024.0,0.01471]
[1770450460538,0.014704,68055.0,68023.0,0.57723112]
[1770450461036,0.16160356,68054.0,68029.0,0.57723112]
[1770450461238,0.014699,68079.0,68039.0,0.59193812]
[1770450461539,0.0147,68070.0,68039.0,0.57723112]
[1770450461736,0.16160356,68080.0,68045.0,0.59193612]
[1770450462041,0.16160356,68079.0,68045.0,0.57723112]
[1770450462235,0.014699,68077.0,68045.0,0.57723112]
[1770450462427,0.014699,68077.0,68046.0,0.014705]
[1770450462632,0.16160356,68076.0,68046.0,0.014705]
[1770450462932,0.014699,68074.0,68045.0,0.57723112]
[1770450463133,0.014699,68074.0,68045.0,0.56023112]
[1770450463336,0.16160356,68073.0,68047.0,0.014705]
[1770450463642,0.014697,68086.0,68052.0,0.014704]
[1770450463830,0.014696,68092.0,68052.0,0.57723112]
[1770450464035,0.16160356,68093.0,68072.0,0.0017]
[1770450464240,0.014694,68099.0,68072.0,0.0017]
[1770450464445,0.16160356,68090.0,68063.0,0.014702]
[1770450464737,0.014696,68091.0,68048.0,0.57723112]
[1770450464938,0.014696,68092.0,68048.0,0.57723112]
[1770450465139,0.014695,68093.0,68048.0,0.57723112]
[1770450465342,0.16160356,68095.0,68048.0,0.57723112]
[1770450465527,0.16160356,68090.0,68053.0,0.57723112]
[1770450465728,0.014696,68089.0,68054.0,0.014704]
[1770450465933,0.014697,68084.0,68053.0,0.57723112]
[1770450466333,0.014698,68082.0,68053.0,0.57723112]
[1770450466534,0.014698,68082.0,68053.0,0.59193512]
[1770450466736,0.16160356,68081.0,68053.0,0.57723112]
[1770450467131,0.16160356,68080.0,68053.0,0.57723112]
[1770450467331,0.014698,68082.0,68053.0,0.57723112]
[1770450467540,0.16160356,68079.0,68053.0,0.57723112]
[1770450467744,0.16160356,68078.0,68053.0,0.57723112]
[1770450467940,0.014698,68079.0,68053.0,0.57723112]
[1770450468133,0.57337929,68084.0,68041.0,0.014706]
[1770450468441,0.014699,68076.0,68045.0,0.014706]
[1770450468635,0.0147,68072.0,68043.0,0.014706]
[1770450468833,0.014699,68074.0,68039.0,0.57723112]
[1770450469036,0.014699,68074.0,68043.0,0.014706]
[1770450469235,0.16160356,68073.0,68043.0,0.014706]
[1770450469730,0.16160356,68072.0,68043.0,0.014706]
[1770450469930,0.0147,68071.0,68043.0,0.014706]
[1770450470335,0.16160356,68070.0,68043.0,0.014706]
[1770450470542,0.0147,68072.0,68043.0,0.014706]
[1770450470835,0.0147,68071.0,68039.0,0.56093712]
[1770450471037,0.014701,68067.0,68039.0,0.014707]
[1770450471237,0.014701,68069.0,68026.0,0.57723112]
[1770450471445,0.57337929,68078.0,68034.0,0.014708]
[1770450471735,0.57337929,68076.0,68026.0,0.57723112]
[1770450471942,0.0147,68073.0,68026.0,0.57723112]
[1770450472343,0.16160356,68072.0,68049.0,0.57723112]
[1770450472532,0.014697,68084.0,68055.0,0.014703]
[1770450472731,0.16160356,68083.0,68072.0,0.0016]
[1770450472936,0.16160356,68082.0,68072.0,0.0016]
[1770450473141,0.16160356,68082.0,68058.0,0.014703]
[1770450473437,0.16160356,68081.0,68058.0,0.014703]
[1770450473634,0.16160356,68086.0,68062.0,0.014702]
[1770450473934,0.014695,68096.0,68065.0,0.014701]
[1770450474333,0.57337929,68103.0,68065.0,0.014701]
[1770450474334,0.014695,68094.0,68065.0,0.014701]
[1770450474538,0.014697,68085.0,68049.0,0.57723112]
[1770450474735,0.014696,68090.0,68054.0,0.57723112]
[1770450474936,0.16160356,68092.0,68057.0,0.014703]
[1770450475236,0.57337929,68096.0,68066.0,0.014701]
[1770450475437,0.16160356,68095.0,68054.0,0.57723112]
[1770450475744,0.16160356,68095.0,68059.0,0.57723112]
[1770450476044,0.014692,68107.0,68080.0,0.57723112]
[1770450476238,0.57337929,68125.0,68080.0,0.57723112]
[1770450476440,0.57337929,68125.0,68094.0,0.0016]
[1770450476441,0.014692,68108.0,68094.0,0.0016]
[1770450476634,0.014692,68110.0,68080.0,0.59192912]
[1770450476839,0.014694,68099.0,68070.0,0.0147]
[1770450477138,0.014694,68099.0,68073.0,0.014699]
[1770450477543,0.57337929,68101.0,68054.0,0.57723112]
[1770450477843,0.014695,68093.0,68066.0,0.014701]
[1770450478541,0.014695,68093.0,68054.0,0.55093212]
[1770450478743,0.014694,68097.0,68054.0,0.55093212]
[1770450478945,0.57337929,68117.0,68077.0,0.014699]
[1770450479142,0.57337929,68117.0,68080.0,0.014698]
[1770450479448,0.014693,68106.0,68080.0,0.014698]
[1770450479837,0.014692,68110.0,68080.0,0.014698]
[1770450480043,0.014691,68114.0,68087.0,0.014696]
[1770450480243,0.57337929,68130.0,68090.0,0.014696]
[1770450480438,0.01469,68117.0,68090.0,0.014696]
[1770450480750,0.014688,68127.0,68101.0,0.014693]
[1770450481046,0.01469,68117.0,68093.0,0.57723112]
[1770450481247,0.01469,68117.0,68093.0,0.59192612]
[1770450481446,0.57337929,68144.0,68100.0,0.57723112]
[1770450481649,0.57337929,68157.0,68108.0,0.57723112]
[1770450481952,0.57337929,68152.0,68115.0,0.01469]
[1770450482141,0.57337929,68152.0,68108.0,0.57723112]
[1770450482142,0.57337929,68152.0,68109.0,0.014692]
[1770450482444,0.014685,68140.0,68112.0,0.014691]
[1770450483043,0.57337929,68152.0,68108.0,0.57723112]
[1770450483238,0.014688,68129.0,68094.0,0.57723112]
[1770450483445,0.57337929,68135.0,68099.0,0.014694]
[1770450483641,0.57337929,68135.0,68094.0,0.59192612]
[1770450483847,0.014685,68141.0,68094.0,0.59192612]
[1770450484055,0.014689,68121.0,68093.0,0.014695]
[1770450484350,0.014689,68123.0,68096.0,0.014694]
[1770450484556,0.01469,68120.0,68089.0,0.014696]
[1770450484852,0.01469,68117.0,68089.0,0.014696]
[1770450485242,0.014688,68127.0,68096.0,0.014694]
[1770450485444,0.014684,68144.0,68115.0,0.01469]
[1770450485744,0.57337929,68145.0,68091.0,0.57723112]
[1770450485938,0.014689,68125.0,68097.0,0.014694]
[1770450486345,0.5827001,68142.0,68095.0,0.014695]
[1770450486546,0.014684,68148.0,68091.0,0.53623112]
[1770450486547,0.5827001,68134.0,68099.0,0.014694]
[1770450486743,0.014688,68129.0,68099.0,0.014694]
[1770450486944,0.014688,68129.0,68091.0,0.53623112]
[1770450486945,0.014688,68129.0,68102.0,0.014693]
[1770450487144,0.014688,68126.0,68098.0,0.014694]
[1770450487448,0.5827001,68134.0,68091.0,0.53623112]
[1770450487646,0.014687,68130.0,68105.0,0.014693]
[1770450487947,0.014687,68130.0,68070.0,0.15113311]
[1770450487948,0.014686,68139.0,68103.0,0.5758741]
[1770450488451,0.014685,68143.0,68114.0,0.014691]
[1770450488748,0.014685,68143.0,68117.0,0.01469]
[1770450489145,0.5827001,68146.0,68111.0,0.014691]
[1770450489345,0.5827001,68146.0,68114.0,0.014691]
[1770450489649,0.014683,68151.0,68116.0,0.54246152]
[1770450489848,0.014684,68145.0,68119.0,0.01469]
[1770450490148,0.014682,68153.0,68116.0,0.54246152]
[1770450490345,0.014682,68153.0,68108.0,0.014692]
[1770450490346,0.56686082,68157.0,68120.0,0.54246152]
[1770450490550,0.56686082,68157.0,68144.0,0.0018]
[1770450490953,0.55217882,68170.0,68144.0,0.0018]
[1770450491145,0.014679,68169.0,68145.0,0.014684]
[1770450491341,0.55217882,68170.0,68149.0,0.014683]
[1770450491550,0.0002,68177.0,68146.0,0.54246152]
[1770450491747,0.55217882,68198.0,68158.0,0.014681]
[1770450491748,0.014676,68185.0,68158.0,0.014681]
[1770450491941,0.014676,68185.0,68169.0,0.0011]
[1770450492146,0.55217882,68198.0,68169.0,0.0011]
[1770450492341,0.470416,68177.0,68152.0,0.014682]
[1770450492542,0.0272881,68200.0,68146.0,0.54246152]
[1770450492543,0.014679,68169.0,68146.0,0.54246152]
[1770450492744,0.014679,68169.0,68143.0,0.014684]
[1770450492949,0.55217882,68180.0,68133.0,0.54246152]
[1770450493147,0.0002,68185.0,68170.0,0.014679]
[1770450493452,0.0002,68205.0,68164.0,0.54246152]
[1770450493660,0.014674,68191.0,68164.0,0.54246152]
[1770450493844,0.014674,68191.0,68147.0,0.014683]
[1770450494155,0.014675,68188.0,68156.0,0.014682]
[1770450494354,0.014676,68184.0,68156.0,0.014682]